bitfinex/quotes_ETHUSD_20251214
["timestamp","ask_amount","ask_price","bid_price","bid_amount"]
[1765675066739,0.001,3124.2,3124.1,39.77075096]
[1765675067050,0.001,3124.2,3124.1,40.38314141]
[1765675072634,0.001,3124.2,3124.1,40.84706505]
[1765675078361,0.001,3124.6,3124.2,0.98597929]
[1765675078528,0.11625762,3125.1,3125.0,35.90201955]
[1765675078728,0.001,3125.8,3125.4,40.23758452]
[1765675078933,0.001,3125.8,3125.4,42.00594532]
[1765675079258,0.001,3125.8,3125.4,42.08142061]
[1765675079430,0.001,3125.8,3125.4,36.94779803]
[1765675079826,0.001,3125.8,3125.4,40.14738848]
[1765675080050,0.001,3125.8,3125.4,40.56008848]
[1765675080674,0.001,3125.8,3125.4,33.90814422]
[1765675080831,0.487,3125.5,3125.4,39.32918448]
[1765675081348,0.985,3125.5,3125.4,39.32918448]
[1765675081543,0.985,3125.5,3125.4,33.90814422]
[1765675082136,0.985,3125.5,3125.4,33.32766893]
[1765675082342,0.985,3125.5,3125.4,33.90814422]
[1765675082854,0.985,3125.5,3125.4,33.78006574]
[1765675085859,0.985,3125.5,3125.4,3.78006574]
[1765675086036,0.985,3125.5,3125.4,33.78006574]
[1765675087460,0.001,3125.5,3125.4,34.19276574]
[1765675091263,0.001,3125.5,3125.4,34.59826974]
[1765675091581,0.001,3125.5,3125.4,39.92701]
[1765675091869,0.001,3125.5,3125.4,40.88993364]
[1765675092963,0.001,3125.5,3125.4,10.88993364]
[1765675093198,0.001,3125.5,3125.4,40.88993364]
[1765675098068,0.001,3125.5,3125.4,10.88993364]
[1765675098274,0.001,3125.5,3125.4,40.88993364]
[1765675099070,0.001,3125.5,3125.4,40.42601]
[1765675100744,0.001,3125.5,3125.4,35.50996974]
[1765675101275,0.001,3125.5,3125.4,35.09726974]
[1765675102175,0.001,3125.5,3125.4,35.50996974]
[1765675102476,0.001,3125.5,3125.4,40.42216213]
[1765675105277,0.001,3125.5,3125.4,45.33435452]
[1765675106388,0.001,3125.5,3125.4,40.51446213]
[1765675110355,0.001,3125.5,3125.4,46.30327816]
[1765675117493,0.001,3125.5,3125.4,16.30327816]
[1765675117698,0.001,3125.5,3125.4,46.30327816]
[1765675118201,0.001,3125.5,3125.4,45.79827816]
[1765675118400,0.001,3125.5,3125.4,46.30327816]
[1765675118785,0.001,3125.5,3125.4,40.92716213]
[1765675119600,0.001,3125.5,3125.4,40.51446213]
[1765675121082,0.001,3125.5,3125.4,40.10176213]
[1765675121402,0.001,3125.5,3125.4,40.51446213]
[1765675121603,0.001,3125.5,3125.4,10.51446213]
[1765675121906,0.001,3125.5,3125.4,45.42754858]
[1765675124197,0.001,3125.5,3125.4,46.30417222]
[1765675124570,0.001,3125.5,3125.4,16.30417222]
[1765675124770,0.001,3125.5,3125.4,46.30417222]
[1765675137484,0.001,3125.5,3125.4,45.89147222]
[1765675137684,0.001,3125.5,3125.4,45.88951114]
[1765675139708,0.001,3125.5,3125.4,45.38451114]
[1765675140016,0.001,3125.5,3125.4,45.4245875]
[1765675142119,0.001,3125.5,3125.4,45.88851114]
[1765675143314,0.001,3125.5,3125.4,46.30121114]
[1765675143490,0.001,3125.5,3125.4,46.66100134]
[1765675143902,0.001,3125.5,3125.4,46.24830134]
[1765675148924,0.001,3125.5,3125.4,46.66100134]
[1765675152215,0.001,3125.5,3125.4,16.24830134]
[1765675152524,0.001,3125.5,3125.4,46.24830134]
[1765675153725,0.001,3125.5,3125.4,46.66100134]
[1765675153926,0.003,3125.7,3125.6,30.0]
[1765675154132,0.003,3125.7,3125.6,41.31828514]
[1765675154311,0.003,3125.7,3125.6,42.14199898]
[1765675154626,0.003,3125.7,3125.6,42.17897534]
[1765675155425,0.003,3125.7,3125.6,45.84228469]
[1765675156344,0.003,3125.7,3125.6,15.84228469]
[1765675156636,0.003,3125.7,3125.6,45.84228469]
[1765675157133,0.003,3125.7,3125.6,45.48249449]
[1765675160605,0.004,3125.7,3125.6,45.48249449]
[1765675160809,0.5035,3125.7,3125.6,45.10987085]
[1765675161010,1.0014,3125.7,3125.6,45.10987085]
[1765675161321,0.004,3125.7,3125.6,45.10987085]
[1765675161647,0.004,3125.7,3125.6,45.98649449]
[1765675162944,0.004,3125.7,3125.6,45.57379449]
[1765675163620,0.5035,3125.7,3125.6,45.57379449]
[1765675165811,0.5035,3125.7,3125.6,45.10987085]
[1765675166132,0.5035,3125.7,3125.6,45.57379449]
[1765675169754,0.5035,3125.7,3125.6,45.06979449]
[1765675170051,0.5035,3125.7,3125.6,45.57379449]
[1765675170756,0.5035,3125.7,3125.6,15.57379449]
[1765675170931,0.5035,3125.7,3125.6,45.57379449]
[1765675171842,0.5035,3125.7,3125.6,15.57379449]
[1765675172044,0.5035,3125.7,3125.6,45.10987085]
[1765675172753,0.5035,3125.7,3125.6,15.10987085]
[1765675172953,0.5035,3125.7,3125.6,45.10987085]
[1765675173160,0.5035,3125.7,3125.6,50.02129812]
[1765675174639,0.5035,3125.7,3125.6,50.48522176]
[1765675176552,0.004,3125.7,3125.6,45.10940763]
[1765675176849,0.004,3125.7,3125.6,45.98603127]
[1765675177351,0.004,3125.7,3125.6,45.57333127]
[1765675178353,0.004,3125.7,3125.6,45.98603127]
[1765675179740,0.5021,3125.7,3125.6,45.57333127]
[1765675180339,0.9972,3125.7,3125.6,45.57333127]
[1765675181565,0.5021,3125.7,3125.6,44.10361554]
[1765675181755,0.004,3125.7,3125.6,45.48423918]
[1765675182065,0.5021,3125.7,3125.6,45.47704318]
[1765675182364,0.004,3125.7,3125.6,45.47704318]
[1765675182548,0.004,3125.7,3125.6,45.88974318]
[1765675183562,0.004,3125.7,3125.6,45.47704318]
[1765675183967,0.004,3125.7,3125.6,15.47732232]
[1765675184168,0.004,3125.7,3125.6,45.47732232]
[1765675185070,0.004,3125.7,3125.6,45.89002232]
[1765675187062,0.004,3125.7,3125.6,46.73286975]
[1765675187262,0.004,3125.7,3125.6,47.06964403]
[1765675187655,1e-08,3125.7,3125.6,46.60572039]
[1765675187870,0.003,3126.1,3125.8,0.405504]
[1765675188054,0.003,3126.1,3126.0,39.09652245]
[1765675188255,0.98739609,3127.8,3127.3,0.5934]
[1765675188453,0.98739609,3127.8,3127.7,10.80911297]
[1765675188454,0.06633506,3127.8,3127.7,10.80911297]
[1765675188764,0.4981,3127.8,3127.7,42.89097737]
[1765675188953,0.20130795,3129.0,3128.1,0.405504]
[1765675189156,0.20130795,3129.0,3127.7,12.73039808]
[1765675189157,0.00610795,3129.0,3128.9,0.58047529]
[1765675189473,0.00610795,3129.0,3128.7,0.58047529]
[1765675189474,0.99930795,3129.0,3128.7,30.0]
[1765675189773,0.3615,3128.8,3128.7,40.58047529]
[1765675189983,0.3615,3128.8,3127.9,0.49671063]
[1765675189984,0.3615,3128.8,3128.0,30.0]
[1765675190169,0.1952,3128.8,3128.2,30.58047529]
[1765675190479,0.4951,3128.7,3128.3,30.0]
[1765675190857,0.1952,3128.8,3128.3,30.58047529]
[1765675190858,0.4981,3128.4,3128.3,30.58047529]
[1765675191974,0.4981,3128.4,3128.3,39.09417049]
[1765675192176,0.1962,3128.8,3128.4,0.98597929]
[1765675192348,0.1962,3128.8,3128.7,45.49204213]
[1765675192550,0.001,3128.8,3128.7,41.30691297]
[1765675192745,0.001,3128.8,3128.7,41.8036236]
[1765675193676,0.4991,3128.8,3128.7,36.40354613]
[1765675193884,0.9942,3128.8,3128.7,35.89754613]
[1765675194045,0.9942,3128.8,3128.7,39.09376181]
[1765675194250,0.9942,3128.8,3128.7,34.68819497]
[1765675194449,0.9942,3128.8,3128.7,33.77669097]
[1765675196979,0.9942,3128.8,3128.7,33.19621568]
[1765675197477,0.9879,3128.8,3128.7,34.60333308]
[1765675197649,0.9879,3128.8,3128.7,35.00883708]
[1765675198046,0.9879,3128.8,3128.7,33.77669097]
[1765675199068,0.9879,3128.8,3128.7,4.73645909]
[1765675199261,0.9879,3128.8,3128.7,34.73645909]
[1765675199681,0.9879,3128.8,3128.7,31.54024341]
[1765675200248,0.9879,3128.8,3128.7,41.54024341]
[1765675200454,0.9879,3128.8,3128.4,30.0]
[1765675200683,0.4888,3128.7,3128.4,2.963]
[1765675200888,0.4704,3128.5,3128.4,2.963]
[1765675201061,0.4704,3128.5,3128.3,0.002]
[1765675201254,0.7335,3128.4,3128.3,0.002]
[1765675202182,3.93002218,3128.4,3128.3,0.002]
[1765675205861,4.43602218,3128.4,3128.3,0.002]
[1765675206071,5.23611964,3128.4,3128.3,0.002]
[1765675208281,4.73011964,3128.4,3128.3,0.002]
[1765675208486,5.23611964,3128.4,3128.3,0.002]
[1765675213999,16.63390654,3128.4,3128.3,0.002]
[1765675214186,19.04971288,3128.4,3128.3,0.002]
[1765675215209,13.63592598,3128.4,3128.3,0.002]
[1765675215367,5.81659493,3128.4,3128.3,0.002]
[1765675215686,6.79945296,3128.4,3128.3,0.002]
[1765675226106,13.28945296,3128.4,3128.3,0.002]
[1765675228212,14.14259267,3128.4,3128.3,0.002]
[1765675229208,13.28945296,3128.4,3128.3,0.002]
[1765675230907,13.22645296,3128.4,3128.3,0.002]
[1765675236283,14.37912133,3128.4,3128.3,0.002]
[1765675243709,14.37812133,3128.4,3128.3,0.002]
[1765675245216,13.22545296,3128.4,3128.3,0.002]
[1765675246005,13.22645296,3128.4,3128.3,0.002]
[1765675247900,18.13513869,3128.4,3128.3,0.002]
[1765675248912,18.13748291,3128.4,3128.3,0.002]
[1765675250010,19.86412769,3128.4,3128.3,0.002]
[1765675250720,18.13748291,3128.4,3128.3,0.002]
[1765675253327,19.863525,3128.4,3128.3,0.002]
[1765675256013,19.86334395,3128.4,3128.3,0.002]
[1765675256438,18.13730186,3128.4,3128.3,0.002]
[1765675258242,6.488,3128.2,3127.1,30.4976]
[1765675258529,0.4534,3127.1,3127.0,0.002]
[1765675258729,2.9097466,3127.1,3127.0,0.002]
[1765675258929,8.62335129,3127.1,3127.0,0.002]
[1765675259236,0.405504,3126.8,3126.1,0.6]
[1765675259405,4.90868573,3126.3,3126.1,0.6]
[1765675259741,5.14319287,3126.2,3126.1,0.6]
[1765675259910,5.63899287,3126.2,3126.1,0.6]
[1765675260112,6.787824,3126.2,3126.1,0.6]
[1765675260315,9.10510932,3126.2,3126.1,0.6]
[1765675260552,8.10330932,3126.2,3126.1,0.6]
[1765675260846,6.00487633,3126.2,3126.1,0.6]
[1765675261205,5.14319287,3126.2,3126.1,0.6]
[1765675263450,0.68538552,3126.2,3126.1,1.0675]
[1765675263647,0.506,3126.2,3126.1,1.7063]
[1765675263950,0.506,3126.2,3126.1,1.0675]
[1765675264151,1.50086857,3126.2,3126.1,0.6]
[1765675264323,1.99666857,3126.2,3126.1,0.6]
[1765675264517,1.50086857,3126.2,3126.1,0.6]
[1765675268758,0.54146857,3126.2,3126.1,1.0675]
[1765675268941,1.04746857,3126.2,3126.1,1.0675]
[1765675269470,6.488,3126.3,3126.1,4.90517399]
[1765675269624,6.488,3126.3,3126.2,0.9651]
[1765675269822,6.994,3126.3,3126.2,0.9651]
[1765675271131,6.994,3126.3,3126.2,1.6651]
[1765675273135,6.488,3126.3,3126.2,1.6651]
[1765675273329,6.994,3126.3,3126.2,1.6651]
[1765675274953,6.488,3126.3,3126.2,1.6651]
[1765675275159,6.994,3126.3,3126.2,1.6651]
[1765675277454,6.488,3126.3,3126.2,1.6651]
[1765675277659,6.994,3126.3,3126.2,1.6651]
[1765675278532,7.4474,3126.3,3126.2,0.7]
[1765675278740,7.6934,3126.3,3126.2,1.1675]
[1765675279156,7.6934,3126.3,3126.2,0.4675]
[1765675279360,11.84130877,3126.3,3126.1,0.6]
[1765675279561,2.55649945,3126.2,3126.1,0.6]
[1765675280235,1.67499945,3126.2,3126.1,1.0675]
[1765675280438,2.12839945,3126.2,3126.1,0.6]
[1765675282664,8.61639945,3126.2,3126.1,0.6]
[1765675285350,9.30451253,3126.2,3126.1,0.6]
[1765675287377,10.06476932,3126.2,3126.1,0.6]
[1765675288166,13.26354099,3126.2,3126.1,0.6]
[1765675288468,14.12522445,3126.2,3126.1,0.6]
[1765675298056,13.26354099,3126.2,3126.1,0.6]
[1765675298376,14.41237212,3126.2,3126.1,0.6]
[1765675301090,13.26354099,3126.2,3126.1,0.6]
[1765675302266,13.26592743,3126.2,3126.1,0.6]
[1765675303369,14.41668049,3126.2,3126.1,0.6]
[1765675304390,13.95558049,3126.2,3126.1,0.6]
[1765675306068,19.33222802,3126.2,3126.1,0.6]
[1765675306899,18.87112802,3126.2,3126.1,0.6]
[1765675307068,18.18147496,3126.2,3126.1,0.6]
[1765675307895,14.41662554,3126.2,3126.1,0.6]
[1765675308095,13.26592743,3126.2,3126.1,0.6]
[1765675311275,14.41661965,3126.2,3126.1,0.6]
[1765675311778,13.26592743,3126.2,3126.1,0.6]
[1765675312005,14.41661963,3126.2,3126.1,0.6]
[1765675313210,13.26592743,3126.2,3126.1,0.6]
[1765675315189,14.41658978,3126.2,3126.1,0.6]
[1765675317680,14.11743299,3126.2,3126.1,0.6]
[1765675317876,10.80885553,3126.2,3126.1,1.7018]
[1765675318195,9.15319318,3126.2,3126.1,1.7018]
[1765675318504,8.84630032,3126.2,3126.1,1.7018]
[1765675318674,7.98319373,3126.2,3126.1,1.7018]
[1765675319079,0.99019373,3126.2,3126.1,34.90067399]
[1765675319278,1.36810659,3126.7,3126.1,38.09954798]
[1765675319506,0.98971815,3126.6,3126.2,10.4675]
[1765675319702,0.98971815,3126.5,3126.2,10.4675]
[1765675319906,0.69019607,3126.4,3126.3,0.4675]
[1765675320279,0.69019607,3126.4,3126.3,0.9606]
[1765675320508,0.98972124,3126.4,3126.3,0.9606]
[1765675320677,0.69019607,3126.4,3126.3,0.9606]
[1765675325191,0.505,3126.7,3126.3,0.9606]
[1765675325417,0.505,3126.7,3126.6,0.4931]
[1765675325712,1.95003853,3126.7,3126.6,0.4931]
[1765675328092,6.08129867,3126.7,3126.1,10.7412]
[1765675328296,0.3218,3126.5,3126.1,0.7412]
[1765675328497,0.68926851,3126.4,3126.1,0.7412]
[1765675328718,1.19426851,3126.3,3126.1,0.6]
[1765675328882,1.44443209,3126.2,3126.1,0.6]
[1765675329086,2.1625353,3126.2,3126.1,0.6]
[1765675330315,5.36130697,3126.2,3126.1,0.6]
[1765675334413,11.84930697,3126.2,3126.1,0.6]
[1765675336724,12.71241356,3126.2,3126.1,0.6]
[1765675337231,12.44930697,3126.2,3126.1,0.6]
[1765675339340,8.3188353,3126.2,3126.1,1.0931]
[1765675339528,7.98133209,3126.2,3126.1,1.7018]
[1765675341838,7.47633209,3126.2,3126.1,1.7018]
[1765675342043,7.98133209,3126.2,3126.1,1.7018]
[1765675342656,11.18010376,3126.2,3126.1,1.0931]
[1765675342935,12.70412955,3126.2,3126.1,1.0931]
[1765675343144,9.50535788,3126.2,3126.1,1.0931]
[1765675347826,9.50535788,3126.2,3126.1,1.7275]
[1765675350147,9.50535788,3126.2,3126.1,1.0931]
[1765675350442,9.50535788,3126.2,3126.1,0.6]
[1765675350839,9.50535788,3126.2,3126.1,1.0698]
[1765675354158,10.36692333,3126.2,3126.1,1.0698]
[1765675357029,10.36692333,3126.2,3126.1,1.563]
[1765675357833,10.36692333,3126.2,3126.1,1.0698]
[1765675358258,9.50535788,3126.2,3126.1,1.0698]
[1765675359355,9.50535788,3126.2,3126.1,1.7042]
[1765675359547,7.98133209,3126.2,3126.1,1.7042]
[1765675360636,7.98133209,3126.2,3126.1,1.0698]
[1765675362468,9.32278569,3126.2,3126.1,0.6]
[1765675362670,8.91383209,3126.2,3126.1,0.6]
[1765675362969,7.47633209,3126.2,3126.1,1.0698]
[1765675363169,7.98133209,3126.2,3126.1,1.0698]
[1765675363372,7.98133209,3126.2,3126.1,1.563]
[1765675363542,9.69250505,3126.2,3126.1,0.6]
[1765675363871,12.89127672,3126.2,3126.1,0.6]
[1765675364077,13.34567672,3126.2,3126.1,0.6]
[1765675364450,9.69250505,3126.2,3126.1,0.6]
[1765675369181,10.8431674,3126.2,3126.1,0.6]
[1765675370162,14.04193907,3126.2,3126.1,0.6]
[1765675371087,14.49633907,3126.2,3126.1,0.6]
[1765675371986,14.04193907,3126.2,3126.1,0.6]
[1765675374591,10.8431674,3126.2,3126.1,0.6]
[1765675374959,10.3650674,3126.2,3126.1,0.6]
[1765675375163,7.98133209,3126.2,3126.1,1.0698]
[1765675375464,7.98133209,3126.2,3126.1,1.6731]
[1765675376887,7.98133209,3126.2,3126.1,2.3731]
[1765675378879,7.47633209,3126.2,3126.1,2.3731]
[1765675379195,7.98133209,3126.2,3126.1,2.3731]
[1765675380866,7.47633209,3126.2,3126.1,2.3731]
[1765675381067,7.98133209,3126.2,3126.1,2.3731]
[1765675381296,8.84511855,3126.2,3126.1,2.3731]
[1765675381794,7.98133209,3126.2,3126.1,2.3731]
[1765675382170,8.84510063,3126.2,3126.1,2.3731]
[1765675383290,8.84510063,3126.2,3126.1,1.911]
[1765675383490,8.84510063,3126.2,3126.1,1.7698]
[1765675383808,8.34010063,3126.2,3126.1,2.3731]
[1765675383994,8.84510063,3126.2,3126.1,2.3731]
[1765675384178,7.98133209,3126.2,3126.1,5.57197399]
[1765675384679,7.98133209,3126.2,3126.1,1.7713]
[1765675384897,8.84510063,3126.2,3126.1,1.7713]
[1765675385067,8.84510063,3126.2,3126.1,2.2334]
[1765675385497,9.34160063,3126.2,3126.1,1.3]
[1765675385701,9.89588527,3126.2,3126.1,1.3]
[1765675385903,10.75956626,3126.2,3126.1,1.3]
[1765675389119,10.75956626,3126.2,3126.1,0.6]
[1765675389275,10.26306626,3126.2,3126.1,1.0713]
[1765675391477,10.26306626,3126.2,3126.1,0.6]
[1765675391804,10.76034577,3126.2,3126.1,0.6]
[1765675391987,11.25004577,3126.2,3126.1,0.6]
[1765675392684,11.25158568,3126.2,3126.1,0.6]
[1765675392911,10.76188568,3126.2,3126.1,0.6]
[1765675393898,11.25158568,3126.2,3126.1,0.6]
[1765675397023,11.25158568,3126.2,3126.0,0.002]
[1765675397302,2.43575463,3126.1,3126.0,0.002]
[1765675399318,2.93225463,3126.1,3126.0,0.002]
[1765675399620,3.42195463,3126.1,3126.0,0.002]
[1765675399790,2.93225463,3126.1,3126.0,0.002]
[1765675399993,2.43575463,3126.1,3126.0,0.002]
[1765675400207,2.43575463,3126.1,3126.0,0.4733]
[1765675402217,2.93225463,3126.1,3126.0,0.002]
[1765675402515,4.28555986,3126.1,3126.0,0.002]
[1765675403090,3.42195463,3126.1,3126.0,0.002]
[1765675403289,4.28576178,3126.1,3126.0,0.002]
[1765675403714,4.26696178,3126.1,3126.0,0.002]
[1765675407218,10.75496178,3126.1,3126.0,0.002]
[1765675416132,10.28406178,3126.1,3126.0,0.002]
[1765675416631,10.2839263,3126.1,3126.0,0.002]
[1765675417022,9.7874263,3126.1,3126.0,0.002]
[1765675419432,10.2840263,3126.1,3126.0,0.002]
[1765675422637,10.2840263,3126.1,3126.0,0.4953]
[1765675422638,9.7874263,3126.1,3126.0,0.4953]
[1765675425235,9.7874263,3126.1,3126.0,0.9816]
[1765675428348,8.34239894,3126.1,3126.0,0.9816]
[1765675428545,8.34239894,3126.1,3126.0,4.18057632]
[1765675428546,7.4787568,3126.1,3126.0,4.18057632]
[1765675429824,7.4787568,3126.1,3126.0,34.18057632]
[1765675430538,7.17891371,3126.1,3126.0,34.88057632]
[1765675431243,6.488,3126.1,3126.0,34.88057632]
[1765675433945,0.505,3126.5,3126.0,38.07955264]
[1765675434146,0.505,3126.5,3126.4,0.4933]
[1765675434445,1.49476672,3126.5,3126.4,0.4933]
[1765675435251,1.49476672,3126.5,3126.4,0.4882]
[1765675435650,2.43816672,3126.5,3126.0,0.702]
[1765675435863,1.33004214,3126.1,3126.0,0.002]
[1765675436055,1.96116672,3126.1,3126.0,0.002]
[1765675436345,2.43816672,3126.1,3126.0,0.002]
[1765675436521,3.34562525,3126.1,3126.0,0.002]
[1765675436720,5.06887195,3126.1,3126.0,0.002]
[1765675436918,8.26774594,3126.1,3126.0,0.002]
[1765675437122,6.54449924,3126.1,3126.0,0.002]
[1765675437647,8.26774594,3126.1,3126.0,0.002]
[1765675437953,13.18091786,3126.1,3126.0,0.002]
[1765675438345,11.45767116,3126.1,3126.0,0.002]
[1765675441651,0.98976672,3126.1,3126.0,0.4758]
[1765675441875,1.49476672,3126.1,3126.0,0.9293]
[1765675444254,1.49476672,3126.1,3126.0,0.4758]
[1765675444653,1.49476672,3126.1,3126.0,0.9293]
[1765675445038,1.49476672,3126.1,3126.0,0.4758]
[1765675445559,1.96116672,3126.1,3126.0,0.002]
[1765675450242,1.49476672,3126.1,3126.0,0.002]
[1765675451368,2.43816672,3126.1,3126.0,0.002]
[1765675452056,1.96116672,3126.1,3126.0,0.002]
[1765675453268,1.49476672,3126.1,3126.0,0.002]
[1765675454253,1.49476672,3126.1,3126.0,0.4758]
[1765675460579,1.49445056,3126.1,3126.0,0.4758]
[1765675466388,1.97325056,3126.1,3126.0,0.002]
[1765675466585,3.2707033,3126.1,3126.0,0.002]
[1765675467586,2.97142932,3126.1,3126.0,0.002]
[1765675467782,3.27100708,3126.1,3126.0,0.002]
[1765675468299,4.13290929,3126.1,3126.0,0.002]
[1765675470494,4.58630929,3126.1,3126.0,0.002]
[1765675471191,4.13290929,3126.1,3125.7,0.556]
[1765675471385,0.98975434,3126.0,3125.7,4.2292832]
[1765675471691,0.98975434,3125.9,3125.7,4.2292832]
[1765675471892,0.98975434,3125.8,3125.7,1.03]
[1765675472998,0.98975434,3125.8,3125.7,1.4905]
[1765675474977,0.98975434,3125.8,3125.7,1.0165]
[1765675475494,0.98975434,3125.8,3125.7,0.556]
[1765675475897,0.98975434,3125.8,3125.7,1.0165]
[1765675476695,0.98975434,3125.8,3125.7,1.4905]
[1765675480497,0.98975434,3125.8,3125.7,1.0165]
[1765675482393,0.99075434,3125.8,3125.7,1.0165]
[1765675486600,0.99075434,3125.8,3125.7,4.21578336]
[1765675487907,0.99075434,3125.8,3125.7,1.0165]
[1765675492315,0.99075434,3125.8,3125.7,4.21578336]
[1765675502684,0.99178633,3125.8,3125.7,4.21578336]
[1765675504122,0.99178633,3125.8,3125.7,1.0165]
[1765675505220,0.99178633,3125.8,3125.7,4.21578336]
[1765675506224,0.99178633,3125.8,3125.7,4.91578336]
[1765675506605,1.19720857,3125.8,3125.7,5.39008336]
[1765675506808,0.69220857,3125.8,3125.7,35.39008336]
[1765675507391,0.69220857,3125.8,3125.7,36.35085043]
[1765675511013,0.69220857,3125.8,3125.7,29.96485043]
[1765675511215,0.69220857,3125.8,3125.7,18.01285043]
[1765675511409,0.69220857,3125.8,3125.7,15.93785043]
[1765675515623,0.69220857,3125.8,3125.7,15.38185043]
[1765675517593,0.001,3125.8,3125.7,36.37532572]
[1765675521623,0.001,3125.8,3125.7,46.37532572]
[1765675521812,0.001,3125.8,3125.7,36.37532572]
[1765675522532,0.001,3125.8,3125.7,37.28582972]
[1765675522705,0.001,3125.8,3125.7,37.72007438]
[1765675522904,0.001,3125.8,3125.7,37.28582972]
[1765675524128,0.001,3125.8,3125.7,37.72007438]
[1765675525012,0.001,3125.8,3125.7,38.04799462]
[1765675526929,0.001,3125.8,3125.7,38.47572688]
[1765675527131,0.001,3125.8,3125.7,37.54299462]
[1765675527337,0.001,3125.8,3125.7,37.61374996]
[1765675530123,0.001,3125.8,3125.7,42.52438759]
[1765675531531,0.001,3125.8,3125.7,43.38636451]
[1765675536022,0.001,3126.4,3126.0,0.98597929]
[1765675536325,0.001,3126.4,3126.3,41.41935455]
[1765675536823,0.001,3126.4,3126.3,41.90225455]
[1765675537242,0.001,3126.4,3126.3,42.03029695]
[1765675538146,0.001,3126.4,3126.3,45.2289663]
[1765675544048,0.001,3126.4,3126.3,15.2289663]
[1765675544253,0.001,3126.4,3126.3,45.2289663]
[1765675545027,0.001,3126.4,3126.3,15.2289663]
[1765675545227,0.001,3126.4,3126.3,45.2289663]
[1765675545423,0.4703,3126.4,3126.3,39.22332867]
[1765675545628,0.001,3126.4,3126.3,39.22332867]
[1765675546050,0.001,3126.4,3126.3,9.22332867]
[1765675546249,0.001,3126.4,3126.3,39.22332867]
[1765675546630,0.4703,3126.4,3126.3,39.22332867]
[1765675546828,0.9515,3126.4,3126.3,39.22332867]
[1765675547030,0.9515,3126.4,3126.3,9.22332867]
[1765675547254,0.9515,3126.4,3126.3,39.22332867]
[1765675547554,0.4703,3126.4,3126.3,39.22332867]
[1765675549557,0.001,3126.4,3126.3,39.22332867]
[1765675550152,0.001,3126.4,3126.3,9.22332867]
[1765675550324,0.001,3126.4,3126.3,39.22332867]
[1765675551354,0.4703,3126.4,3126.3,34.31269104]
[1765675551546,0.9515,3126.4,3126.3,39.72832867]
[1765675551933,0.9515,3126.4,3126.3,34.81769104]
[1765675553259,0.9515,3126.4,3126.3,44.81769104]
[1765675553441,0.9515,3126.4,3126.3,33.90718704]
[1765675553754,0.9515,3126.4,3126.3,34.81769104]
[1765675554330,0.4703,3126.4,3126.3,34.81769104]
[1765675556538,0.4703,3126.4,3126.3,33.90718704]
[1765675556749,0.9654,3126.4,3126.3,34.41218704]
[1765675556954,0.9654,3126.4,3126.3,33.90718704]
[1765675560343,0.9654,3126.4,3126.3,3.90718704]
[1765675560543,0.9654,3126.4,3126.3,33.90718704]
[1765675566783,0.9654,3126.4,3126.3,9.69418704]
[1765675567089,0.9654,3126.4,3126.3,9.56614464]
[1765675567288,0.9654,3126.4,3126.3,15.85714464]
[1765675568281,0.9654,3126.4,3126.3,16.55714464]
[1765675572289,0.4703,3126.4,3126.3,34.47914464]
[1765675572485,0.001,3126.4,3126.3,34.47914464]
[1765675572663,0.001,3126.4,3126.3,34.96444464]
[1765675576178,0.001,3126.4,3126.3,44.96444464]
[1765675576385,0.001,3126.4,3126.3,34.96444464]
[1765675578277,0.001,3126.4,3126.3,44.96444464]
[1765675578478,0.001,3126.4,3126.3,34.96444464]
[1765675587793,0.001,3126.4,3126.3,35.41794464]
[1765675588170,0.001,3126.4,3126.3,35.82344864]
[1765675588580,0.001,3126.4,3126.3,36.49304864]
[1765675591398,0.001,3126.4,3126.3,46.49304864]
[1765675591600,0.001,3126.4,3126.3,36.49304864]
[1765675592597,0.001,3126.4,3126.3,6.49304864]
[1765675592792,0.001,3126.4,3126.3,36.49304864]
[1765675593495,0.001,3126.4,3126.3,6.49304864]
[1765675593794,0.001,3126.4,3126.3,36.49304864]
[1765675594579,0.001,3126.4,3126.3,6.03954864]
[1765675594897,0.001,3126.4,3126.3,36.49304864]
[1765675596695,0.001,3126.4,3126.3,46.49304864]
[1765675596894,0.001,3126.4,3126.3,36.49304864]
[1765675600102,0.001,3126.4,3126.3,40.95150217]
[1765675600287,0.001,3126.4,3126.3,41.83924683]
[1765675601483,0.001,3126.4,3126.3,46.74467666]
[1765675605888,0.001,3126.4,3126.3,47.17240892]
[1765675607786,0.001,3126.4,3126.3,17.17240892]
[1765675607993,0.001,3126.4,3126.3,47.17240892]
[1765675613013,0.001,3126.4,3126.3,17.17240892]
[1765675613213,0.001,3126.4,3126.3,47.17240892]
[1765675613507,0.4836,3126.4,3126.3,34.56826935]
[1765675613709,0.001,3126.4,3126.3,45.34425271]
[1765675613915,0.001,3127.0,3126.4,31.80431087]
[1765675614113,0.001,3127.0,3126.9,36.34788735]
[1765675614313,0.001,3127.0,3126.9,37.67952946]
[1765675614609,0.001,3127.0,3126.9,38.61792946]
[1765675615110,0.001,3127.0,3126.9,43.98481552]
[1765675616099,0.001,3127.0,3126.9,47.1828711]
[1765675617714,0.001,3127.0,3126.9,46.35622899]
[1765675618103,0.001,3127.0,3126.9,16.35622899]
[1765675618309,0.001,3127.0,3126.9,46.35622899]
[1765675619111,0.001,3127.0,3126.9,16.35622899]
[1765675619299,0.001,3127.0,3126.9,46.35622899]
[1765675622321,0.001,3127.0,3126.9,16.35622899]
[1765675622520,0.001,3127.0,3126.9,46.35622899]
[1765675623217,0.001,3127.0,3126.9,16.35622899]
[1765675623414,0.001,3127.0,3126.9,46.35622899]
[1765675623609,0.001,3127.0,3126.9,36.08811287]
[1765675623810,0.9554,3127.0,3126.9,40.08124293]